fUSD/lending_fUSD_20260305
["ID","MTS","AMOUNT","RATE_DAILY","PERIOD"]
[407712201,1772698246263,-151.0,0.00030131,2]
[407712202,1772698246273,-862.28603014,0.00030131,2]
[407712203,1772698246282,-151.0,0.00030137,7]
[407712204,1772698246291,-234.25,0.00030137,2]
[407712205,1772698246301,-151.0,0.00030186,2]
[407712206,1772698246310,-894.19061326,0.00030186,2]
[407712207,1772698246319,-151.0,0.00030241,2]
[407712208,1772698246328,-927.27566595,0.00030241,2]
[407712209,1772698246338,-151.0,0.00030296,2]
[407712210,1772698246348,-961.58486559,0.00030296,2]
[407712211,1772698246357,-1481.23780761,0.00030349,2]
[407712212,1772698246367,-217.15233878,0.00030349,2]
[407712213,1772698246377,-181.08010149,0.00030349,2]
[407712214,1772698246386,-272.62944185,0.00030349,2]
[407712215,1772698246396,-217.15233878,0.00030349,2]
[407712216,1772698246406,-217.15233878,0.00030349,2]
[407712217,1772698246416,-771.01748645,0.00030349,2]
[407712218,1772698246426,-188.04392138,0.00030349,2]
[407712219,1772698246436,-232.082381,0.00030349,2]
[407712220,1772698246446,-997.16350561,0.00030351,2]
[407712221,1772698246456,-195.97,0.00030411,120]
[407712222,1772698246466,-667.7,0.00030685,7]
[407712223,1772698246475,-160.0,0.000307,7]
[407712224,1772698246485,-172.70211477,0.000307,7]
[407712225,1772698246494,-205.79172238,0.00030897,2]
[407712226,1772698246504,-187.78006525,0.00030897,2]
[407712227,1772698246513,-282.71673119,0.00030897,2]
[407712228,1772698246525,-225.18697532,0.00030897,2]
[407712229,1772698246536,-225.18697532,0.00030897,2]
[407712230,1772698246546,-799.54513345,0.00030897,2]
[407712231,1772698246556,-345.07886965,0.00031,5]
[407712233,1772698246639,-207.60028246,0.00031,120]
[407712234,1772698246649,-505.0,0.00031111,17]
[407712235,1772698246658,-328.80698393,0.000314,30]
[407712236,1772698246667,-194.72792766,0.00031445,2]
[407712237,1772698246676,-293.17725025,0.00031445,2]
[407712238,1772698246686,-233.51889341,0.00031445,2]
[407712239,1772698246695,-335.85121649,0.00031445,2]
[407712240,1772698246704,-829.12830338,0.00031445,2]
[407712241,1772698246713,-150.0,0.0003147,2]
[407712242,1772698246722,-198.39698767,0.000315,2]
[407712243,1772698246731,-160.0,0.000316,7]
[407712244,1772698246739,-172.70211477,0.000316,7]
[407712245,1772698246748,-787.76950131,0.00031638,2]
[407712246,1772698246757,-1353.3,0.00031685,2]
[407712247,1772698246766,-1031.08,0.00031693,30]
[407712248,1772698246775,-580.65367252,0.00031724,120]
[407712249,1772698246784,-201.93286099,0.00031993,2]
[407712250,1772698246793,-304.02480851,0.00031993,2]
[407712251,1772698246803,-242.15909246,0.00031993,2]
[407712252,1772698246812,-169.26564495,0.00031993,2]
[407712253,1772698246821,-1029.86,0.00032,120]
[407712254,1772698246830,-1100.72713899,0.000322,2]
[407712255,1772698246839,-150.0,0.00032368,120]
[407712256,1772698246848,-198.39220351,0.00032368,120]
[407712257,1772698246856,-1029.86,0.000324,120]
[407712259,1772698246866,-747.8093786,0.0003254,2]
[407712260,1772698246874,-599.60298507,0.0003254,2]
[407712261,1772698246883,-209.40437684,0.00032541,2]
[407712263,1772698246893,-315.27372642,0.00032541,2]
[407712265,1772698246902,-251.11897888,0.00032541,2]
[407712267,1772698246912,-788.90459255,0.00032563,25]
[407712268,1772698246920,-259.796495,0.000328,13]
[407712269,1772698246929,-1029.86,0.000328,120]
[407712270,1772698246939,-234.25,0.00032877,2]
[407712271,1772698246949,-358.942849,0.00032877,7]
[407712272,1772698246959,-358.942849,0.00032877,7]
[407712273,1772698246968,-358.942849,0.00032877,7]
[407712274,1772698246978,-358.942849,0.00032877,7]
[407712275,1772698246989,-469.999999,0.00032877,120]
[407712276,1772698246999,-454.71,0.000329,14]
[407712277,1772698247009,-545.280214,0.00033,8]
[407712278,1772698247020,-183.9995971,0.00033,120]
[407712279,1772698247028,-150.0,0.00033043,2]
[407712280,1772698247040,-217.15233878,0.00033089,2]
[407712281,1772698247051,-273.73306581,0.00033089,2]
[407712282,1772698247061,-329.20125207,0.00033089,2]
[407712283,1772698247071,-279.76354489,0.00033138,2]
[407712284,1772698247080,-1915.29732177,0.00033188,2]
[407712285,1772698247090,-4739.1856452,0.00033188,2]
[407712286,1772698247099,-4653.78916226,0.00033188,2]
[407712287,1772698247109,-1029.86,0.000332,120]
[407712288,1772698247119,-505.0,0.00033556,19]
[407712289,1772698247128,-169.13,0.000336,14]
[407712290,1772698247137,-1029.86,0.000336,120]
[407712291,1772698247146,-1353.3,0.00033606,2]
[407712292,1772698247158,-225.18697532,0.00033637,2]
[407712293,1772698247167,-200.0,0.0003385,30]
[407712294,1772698247177,-180.67566066,0.00034,30]
[407712295,1772698247187,-1029.86,0.00034,120]
[407712296,1772698247196,-160.0,0.00034,120]
[407712297,1772698247207,-161.23202507,0.00034185,2]
[407712298,1772698247216,-1031.08,0.00034229,30]
[407712299,1772698247226,-188.0,0.0003429,30]
[407712300,1772698247236,-1029.86,0.000344,120]
[407712301,1772698247246,-433.0,0.0003449,10]
[407712302,1772698247257,-693.83060529,0.00034605,2]
[407712303,1772698247267,-575.0,0.00034647,2]
[407712304,1772698247277,-200.0,0.00034647,2]
[407712305,1772698247287,-200.0,0.00034647,2]
[407712306,1772698247297,-200.0,0.00034647,2]
[407712307,1772698247306,-200.0,0.00034647,2]
[407712308,1772698247315,-200.0,0.00034647,2]
[407712309,1772698247325,-200.0,0.00034647,2]
[407712310,1772698247335,-200.0,0.00034647,2]
[407712311,1772698247345,-216.0,0.00034647,2]
[407712312,1772698247355,-150.0,0.00034696,2]
[407712313,1772698247364,-1310.0,0.000347,2]
[407712314,1772698247373,-1100.72713899,0.00034766,2]
[407712315,1772698247383,-1066.03677286,0.00034795,2]
[407712316,1772698247392,-1029.86,0.000348,120]
[407712317,1772698247401,-218.89257597,0.00035,7]
[407712318,1772698247410,-162.2,0.00035,10]
[407712319,1772698247419,-454.71,0.00035,14]
[407712320,1772698247429,-504.39475185,0.00035,4]
[407712321,1772698247439,-200.0,0.00035,3]
[407712322,1772698247448,-322.66709975,0.00035,6]
[407712323,1772698247457,-1029.86,0.000352,120]
[407712324,1772698247467,-775.47832561,0.00035279,2]
[407712325,1772698247476,-621.78829552,0.00035279,2]
[407712326,1772698247485,-222.0,0.00035424,30]
[407712327,1772698247495,-176.4237109,0.00035456,60]
[407712328,1772698247504,-1353.3,0.00035528,5]
[407712329,1772698247514,-558.45260981,0.00035589,120]
[407712330,1772698247523,-1029.86,0.000356,120]
[407712331,1772698247537,-300.0,0.00035615,10]
[407712332,1772698247547,-300.0,0.00035615,10]
[407712333,1772698247557,-500.0,0.00035615,30]
[407712334,1772698247566,-749.79081774,0.00035616,120]
[407712335,1772698247576,-183.46807164,0.00035616,10]
[407712336,1772698247585,-1000.0,0.00035616,10]
[407712337,1772698247595,-1000.0,0.00035616,10]
[407712338,1772698247604,-1000.0,0.00035616,10]
[407712339,1772698247614,-1000.0,0.00035616,10]
[407712340,1772698247624,-1000.0,0.00035616,10]
[407712341,1772698247634,-1000.0,0.00035616,10]
[407712342,1772698247643,-1000.0,0.00035616,10]
[407712343,1772698247652,-1000.0,0.00035616,10]
[407712344,1772698247663,-1000.0,0.00035616,10]
[407712345,1772698247672,-1000.0,0.00035616,10]
[407712346,1772698247682,-1000.0,0.00035616,10]
[407712347,1772698247692,-1000.0,0.00035616,10]
[407712348,1772698247702,-1000.0,0.00035616,10]
[407712349,1772698247711,-1000.0,0.00035616,10]
[407712350,1772698247722,-1000.0,0.00035616,10]
[407712351,1772698247732,-1000.0,0.00035616,10]
[407712352,1772698247742,-1000.0,0.00035616,10]
[407712353,1772698247751,-1000.0,0.00035616,10]
[407712354,1772698247760,-1000.0,0.00035616,10]
[407712355,1772698247770,-1000.0,0.00035616,10]
[407712356,1772698247779,-1000.0,0.00035616,10]
[407712357,1772698247788,-181.0,0.00035616,10]
[407712358,1772698247798,-234.25,0.00035616,2]
[407712359,1772698247807,-151.0,0.00035616,7]
[407712360,1772698247816,-289.283162,0.00035616,7]
[407712361,1772698247825,-190.21696105,0.00035616,2]
[407712362,1772698247834,-180.24131651,0.00035718,15]
[407712363,1772698247844,-690.0,0.00035793,2]
[407712364,1772698247852,-250.0,0.00035793,2]
[407712365,1772698247862,-250.0,0.00035793,2]
[407712366,1772698247871,-250.0,0.00035793,2]
[407712367,1772698247879,-250.0,0.00035793,2]
[407712368,1772698247889,-250.0,0.00035793,2]
[407712369,1772698247898,-386.0,0.00035793,2]
[407712370,1772698247907,-795.46336,0.00035888,30]
[407712371,1772698247916,-1029.86,0.00036,120]
[407712372,1772698247926,-505.0,0.00036,21]
[407712373,1772698247937,-160.0,0.00036,10]
[407712374,1772698247947,-195.52,0.00036072,10]
[407712375,1772698247957,-795.46336,0.00036088,30]
[407712376,1772698247966,-672.77,0.00036132,10]
[407712377,1772698247976,-795.46336,0.00036288,30]
[407712378,1772698247986,-6029.0,0.00036381,5]
[407712379,1772698247995,-827.67,0.00036396,10]
[407712380,1772698248005,-1029.86,0.000364,120]
[407712381,1772698248015,-150.0,0.0003643,2]
[407712382,1772698248024,-795.46336,0.00036488,30]
[407712383,1772698248034,-795.46336,0.00036688,30]
[407712384,1772698248044,-252.0,0.00036722,30]
[407712385,1772698248053,-1031.08,0.00036764,60]
[407712386,1772698248063,-1029.86,0.000368,120]
[407712387,1772698248073,-587.0,0.00036873,2]
[407712388,1772698248084,-150.0,0.00036873,2]
[407712389,1772698248094,-150.0,0.00036873,2]
[407712390,1772698248104,-150.0,0.00036873,2]
[407712391,1772698248114,-192.0,0.00036873,2]
[407712392,1772698248124,-795.46336,0.00036888,30]
[407712393,1772698248133,-860.0,0.000369,120]
[407712394,1772698248143,-454.71,0.000369,14]
[407712395,1772698248152,-864.0,0.000369,120]
[407712396,1772698248161,-518.0,0.000369,120]
[407712397,1772698248171,-311.0,0.000369,120]
[407712398,1772698248182,-1000.0,0.00036907,2]
[407712399,1772698248191,-1000.0,0.00036907,2]
[407712400,1772698248201,-1000.0,0.00036907,2]
[407712401,1772698248210,-1000.0,0.00036907,2]
[407712402,1772698248220,-1000.0,0.00036907,2]
[407712403,1772698248232,-3014.598658,0.00037,120]
[407712404,1772698248243,-160.0,0.00037,30]
[407712405,1772698248253,-795.46336,0.00037088,30]
[407712406,1772698248263,-459.59439681,0.000372,120]
[407712407,1772698248274,-459.59439678,0.000372,120]
[407712408,1772698248283,-459.59439678,0.000372,120]
[407712409,1772698248293,-1029.86,0.000372,120]
[407712410,1772698248303,-667.76,0.0003726,120]
[407712411,1772698248313,-795.46336,0.00037288,30]
[407712412,1772698248323,-1100.72713899,0.00037333,2]
[407712413,1772698248332,-1021.10227,0.000374,120]
[407712414,1772698248342,-1353.3,0.00037449,5]
[407712415,1772698248352,-795.46336,0.00037488,30]
[407712416,1772698248362,-150.0,0.00037504,7]
[407712417,1772698248372,-286.0,0.00037504,7]
[407712418,1772698248381,-1029.86,0.000376,120]
[407712419,1772698248391,-1090.0,0.00037655,30]
[407712420,1772698248401,-565.0,0.00037655,30]
[407712421,1772698248411,-795.46336,0.00037688,30]
[407712422,1772698248420,-875.96587139,0.00037753,120]
[407712423,1772698248431,-795.46336,0.00037888,30]
[407712424,1772698248441,-578.66915446,0.000379,120]
[407712425,1772698248451,-851.43039111,0.00037999,120]
[407712426,1772698248460,-526.0,0.00038,5]
[407712427,1772698248470,-1029.86,0.00038,120]
[407712428,1772698248481,-195.97,0.00038014,120]
[407712429,1772698248491,-804.17102365,0.00038018,2]
[407712430,1772698248500,-644.79446246,0.00038018,2]
[407712431,1772698248510,-795.46336,0.00038088,30]
[407712432,1772698248521,-961.32260897,0.000381,33]
[407712433,1772698248532,-335.19699358,0.000381,33]
[407712434,1772698248542,-150.0,0.00038252,2]
[407712435,1772698248552,-795.46336,0.00038288,30]
[407712436,1772698248562,-150.0,0.00038295,30]
[407712437,1772698248574,-271.0,0.00038295,30]
[407712438,1772698248584,-287.67814035,0.000383,30]
[407712439,1772698248594,-151.0,0.00038356,120]
[407712440,1772698248604,-500.0,0.00038356,5]
[407712441,1772698248614,-280.0,0.0003838,5]
[407712442,1772698248624,-152.0,0.00038394,3]
[407712443,1772698248635,-1029.86,0.000384,120]
[407712444,1772698248644,-505.0,0.00038444,23]
[407712445,1772698248654,-197.254,0.00038447,51]
[407712446,1772698248665,-2280.93,0.00038447,51]
[407712447,1772698248674,-795.46336,0.00038488,30]
[407712448,1772698248684,-795.46336,0.00038688,30]
[407712449,1772698248694,-454.71,0.000387,14]
[407712450,1772698248703,-150.0,0.00038745,7]
[407712451,1772698248713,-150.0,0.00038745,7]
[407712452,1772698248725,-212.0,0.00038745,7]
[407712453,1772698248735,-860.0,0.00038745,120]
[407712454,1772698248745,-864.0,0.00038745,120]
[407712455,1772698248755,-518.0,0.00038745,120]
[407712456,1772698248764,-311.0,0.00038745,120]
[407712457,1772698248774,-936.17157815,0.000389,120]
[407712458,1772698248783,-545.25988028,0.00038904,5]
[407712459,1772698248793,-459.59439678,0.00038948,120]
[407712460,1772698248802,-313.35966844,0.00039,90]
[407712461,1772698248812,-670.68091508,0.00039,14]
[407712462,1772698248821,-795.46336,0.00039088,30]
[407712463,1772698248831,-655.54805269,0.000391,120]
[407712464,1772698248840,-152.0,0.00039102,4]
[407712465,1772698248850,-795.46336,0.00039288,30]
[407712466,1772698248860,-1031.08,0.000393,60]
[407712467,1772698248870,-1353.3,0.00039371,7]
[407712468,1772698248879,-795.46336,0.00039488,30]
[407712469,1772698248889,-795.46336,0.00039688,30]
[407712470,1772698248899,-152.0,0.0003981,5]
[407712471,1772698248908,-795.46336,0.00039888,30]
[407712472,1772698248918,-163.03230264,0.0003989,2]
[407712473,1772698248927,-1100.72713899,0.000399,15]
[407712474,1772698248938,-190.0,0.00039915,7]
[407712475,1772698248948,-1027.75,0.0004,120]
[407712476,1772698248959,-325.54,0.0004,120]
[407712477,1772698248968,-711.14,0.0004,120]
[407712478,1772698248979,-161.05264122,0.0004,30]
[407712479,1772698248991,-645.21,0.0004,120]
[407712480,1772698249003,-198.69,0.0004,120]
[407712481,1772698249013,-347.37,0.0004,120]
[407712482,1772698249022,-317.73,0.0004,120]
[407712483,1772698249032,-370.04,0.0004,120]
[407712484,1772698249043,-153.0,0.0004,120]
[407712485,1772698249054,-435.51669654,0.0004,120]
[407712486,1772698249065,-429.35050932,0.0004,7]
[407712487,1772698249076,-151.0,0.0004,120]
[407712488,1772698249087,-259.48540706,0.0004,120]
[407712489,1772698249097,-1293.73185424,0.0004,120]
[407712490,1772698249107,-996.75240113,0.0004,7]
[407712491,1772698249117,-354.70594655,0.0004,120]
[407712492,1772698249126,-1519.73768056,0.0004,120]
[407712493,1772698249136,-439.25617474,0.0004,30]
[407712494,1772698249145,-326.31532329,0.0004,120]
[407712495,1772698249156,-919.53,0.0004,12]
[407712496,1772698249165,-617.08958341,0.0004,30]
[407712497,1772698249175,-1059.70968838,0.0004,14]
[407712498,1772698249186,-498.31508157,0.0004,120]
[407712499,1772698249196,-400.0,0.0004,3]
[407712500,1772698249205,-2000.0,0.0004,120]
[407712501,1772698249218,-160.0,0.0004,120]
[407712502,1772698249231,-571.75747747,0.0004,21]
[407712503,1772698249242,-150.93,0.0004,2]
[407712504,1772698249253,-795.46336,0.00040088,30]
[407712505,1772698249264,-150.0,0.00040165,2]
[407712506,1772698249275,-150.0,0.00040165,7]
[407712507,1772698249285,-150.0,0.00040165,7]
[407712508,1772698249298,-283.0,0.00040165,7]
[407712509,1772698249310,-150.0,0.00040183,14]
[407712510,1772698249319,-231.0,0.00040183,14]
[407712511,1772698249329,-165.0,0.00040183,30]
[407712512,1772698249340,-795.46336,0.00040288,30]
[407712513,1772698249351,-474.69493034,0.00040321,6]
[407712514,1772698249361,-1091.64636051,0.00040324,6]
[407712515,1772698249372,-981.10895256,0.00040395,55]
[407712516,1772698249382,-795.46336,0.00040488,30]
[407712517,1772698249392,-152.0,0.00040518,6]
[407712518,1772698249402,-693.83060529,0.0004054,2]
[407712519,1772698249411,-204.864366,0.000406,20]
[407712520,1772698249421,-860.0,0.00040682,120]
[407712521,1772698249432,-864.0,0.00040682,120]
[407712522,1772698249441,-518.0,0.00040682,120]
[407712523,1772698249452,-311.0,0.00040682,120]
[407712524,1772698249462,-795.46336,0.00040688,30]
[407712525,1772698249471,-226.0,0.00040688,120]
[407712526,1772698249482,-454.71,0.000407,14]
[407712527,1772698249492,-833.92535153,0.00040757,2]
[407712528,1772698249502,-668.65185757,0.00040757,2]
[407712529,1772698249512,-168.0,0.0004076,2]
[407712530,1772698249523,-200.9455895,0.000408,60]
[407712531,1772698249537,-795.46336,0.00040888,30]
[407712532,1772698249546,-505.0,0.00040889,25]
[407712533,1772698249557,-151.0,0.000409,120]
[407712534,1772698249568,-153.0,0.00041,120]
[407712535,1772698249578,-649.24901751,0.00041,30]
[407712536,1772698249588,-188.84011275,0.00041,120]
[407712537,1772698249599,-3836.23220496,0.00041,120]
[407712538,1772698249611,-1033.7242933,0.00041068,120]
[407712539,1772698249621,-443.02469713,0.00041068,120]
[407712540,1772698249632,-300.0,0.00041068,22]
[407712541,1772698249643,-795.46336,0.00041088,30]
[407712542,1772698249655,-300.0,0.00041096,10]
[407712543,1772698249665,-500.0,0.00041096,7]
[407712544,1772698249676,-150.0,0.00041096,10]
[407712545,1772698249687,-151.0,0.00041096,120]
[407712546,1772698249697,-151.0,0.00041096,120]
[407712547,1772698249707,-151.0,0.00041096,120]
[407712548,1772698249716,-151.0,0.00041096,120]
[407712549,1772698249726,-221.90858,0.00041096,120]
[407712550,1772698249737,-151.0,0.00041096,120]
[407712551,1772698249746,-211.839129,0.00041096,120]
[407712552,1772698249755,-155.718846,0.00041096,120]
[407712553,1772698249766,-155.718846,0.00041096,120]
[407712554,1772698249775,-155.718846,0.00041096,120]
[407712555,1772698249785,-155.718846,0.00041096,120]
[407712556,1772698249795,-151.0,0.00041096,120]
[407712557,1772698249805,-151.0,0.00041096,120]
[407712558,1772698249815,-151.0,0.00041096,120]
[407712559,1772698249824,-151.0,0.00041096,120]
[407712560,1772698249834,-151.0,0.00041096,120]
[407712561,1772698249845,-151.0,0.00041096,120]
[407712562,1772698249854,-883.233165,0.00041096,120]
[407712563,1772698249863,-883.233165,0.00041096,120]
[407712564,1772698249872,-883.233165,0.00041096,120]
[407712565,1772698249883,-883.233165,0.00041096,120]
[407712566,1772698249893,-151.0,0.00041096,30]
[407712567,1772698249904,-151.0,0.00041096,30]
[407712568,1772698249915,-151.0,0.00041096,120]
[407712569,1772698249925,-151.0,0.00041096,120]
[407712570,1772698249936,-151.0,0.00041096,30]
[407712571,1772698249946,-151.0,0.00041096,120]
[407712572,1772698249955,-151.0,0.00041096,30]
[407712573,1772698249965,-992.845494,0.00041096,60]
[407712574,1772698249976,-151.0,0.00041096,120]
[407712575,1772698249985,-151.0,0.00041096,120]
[407712576,1772698249994,-992.845494,0.00041096,60]
[407712577,1772698250003,-992.845494,0.00041096,60]
[407712578,1772698250013,-992.845494,0.00041096,60]
[407712579,1772698250022,-151.0,0.00041096,120]
[407712580,1772698250032,-151.0,0.00041096,120]
[407712581,1772698250042,-151.0,0.00041096,120]
[407712582,1772698250063,-255.421433,0.00041096,120]
[407712583,1772698250075,-255.421433,0.00041096,120]
[407712584,1772698250085,-151.0,0.00041096,120]
[407712585,1772698250095,-255.421433,0.00041096,120]
[407712586,1772698250105,-151.0,0.00041096,120]
[407712587,1772698250115,-249.533602,0.00041096,120]
[407712588,1772698250126,-255.421433,0.00041096,120]
[407712589,1772698250136,-151.0,0.00041096,120]
[407712590,1772698250147,-257.428937,0.00041096,120]
[407712591,1772698250157,-300.0,0.00041096,30]
[407712592,1772698250168,-300.0,0.00041096,30]
[407712593,1772698250178,-300.0,0.00041096,30]
[407712594,1772698250190,-300.0,0.00041096,30]
[407712595,1772698250203,-300.0,0.00041096,30]
[407712596,1772698250220,-151.0,0.00041096,120]
[407712597,1772698250230,-151.0,0.00041096,120]
[407712598,1772698250240,-151.0,0.00041096,120]
[407712599,1772698250250,-369.518395,0.00041096,120]
[407712600,1772698250260,-369.518395,0.00041096,120]
[407712601,1772698250270,-151.0,0.00041096,120]
[407712602,1772698250279,-435.511801,0.00041096,120]
[407712603,1772698250290,-369.518395,0.00041096,120]
[407712604,1772698250300,-435.511801,0.00041096,120]
[407712605,1772698250311,-369.518395,0.00041096,120]
[407712606,1772698250322,-151.0,0.00041096,120]
[407712607,1772698250333,-435.511801,0.00041096,120]
[407712608,1772698250344,-435.511801,0.00041096,120]
[407712609,1772698250355,-151.0,0.00041096,120]
[407712610,1772698250365,-263.378083,0.00041096,120]
[407712611,1772698250375,-300.0,0.00041096,30]
[407712612,1772698250385,-300.0,0.00041096,30]
[407712613,1772698250396,-300.0,0.00041096,30]
[407712614,1772698250406,-151.0,0.00041096,120]
[407712615,1772698250421,-151.0,0.00041096,120]
[407712616,1772698250432,-300.0,0.00041096,30]
[407712617,1772698250444,-151.0,0.00041096,120]
[407712618,1772698250740,-300.0,0.00041096,30]
[407712619,1772698250749,-166.673279,0.00041096,120]
[407712620,1772698250759,-151.0,0.00041096,120]
[407712621,1772698250768,-166.673279,0.00041096,120]
[407712622,1772698250777,-166.673279,0.00041096,120]
[407712623,1772698250786,-166.673279,0.00041096,120]
[407712624,1772698250796,-339.533589,0.00041096,120]
[407712625,1772698250805,-284.460215,0.00041096,120]
[407712626,1772698250815,-339.533589,0.00041096,120]
[407712627,1772698250824,-151.0,0.00041096,120]
[407712628,1772698250833,-284.460215,0.00041096,120]
[407712629,1772698250843,-339.533589,0.00041096,120]
[407712630,1772698250852,-245.321521,0.00041096,120]
[407712631,1772698250861,-284.460215,0.00041096,120]
[407712632,1772698250870,-339.533589,0.00041096,120]
[407712633,1772698250879,-284.460215,0.00041096,120]
[407712634,1772698250893,-151.0,0.00041096,120]
[407712635,1772698250902,-151.0,0.00041096,120]
[407712636,1772698250912,-694.262533,0.00041096,15]
[407712637,1772698250921,-151.0,0.00041096,120]
[407712638,1772698250931,-694.262533,0.00041096,15]
[407712639,1772698250940,-694.262533,0.00041096,15]
[407712640,1772698250950,-694.262533,0.00041096,15]
[407712641,1772698250959,-277.927594,0.00041096,14]
[407712642,1772698250969,-153.510087,0.00041096,120]
[407712643,1772698250978,-277.927594,0.00041096,14]
[407712644,1772698250987,-277.927594,0.00041096,14]
[407712645,1772698250996,-277.927594,0.00041096,14]
[407712646,1772698251006,-1006.737687,0.00041096,120]
[407712647,1772698251015,-151.0,0.00041096,120]
[407712648,1772698251024,-1006.737687,0.00041096,120]
[407712649,1772698251034,-1006.737687,0.00041096,120]
[407712650,1772698251044,-1006.737687,0.00041096,120]
[407712651,1772698251054,-300.0,0.00041096,30]
[407712652,1772698251063,-300.0,0.00041096,30]
[407712653,1772698251073,-300.0,0.00041096,30]
[407712654,1772698251082,-300.0,0.00041096,30]
[407712655,1772698251095,-1229.313375,0.00041096,120]
[407712656,1772698251104,-1229.313375,0.00041096,120]
[407712657,1772698251114,-1229.313375,0.00041096,120]
[407712658,1772698251124,-176.284498,0.00041096,120]
[407712659,1772698251134,-1229.313375,0.00041096,120]
[407712660,1772698251144,-463.564965,0.00041096,120]
[407712661,1772698251153,-463.564965,0.00041096,120]
[407712662,1772698251163,-151.0,0.00041096,120]
[407712663,1772698251172,-463.564965,0.00041096,120]
[407712664,1772698251181,-151.0,0.00041096,120]
[407712665,1772698251190,-214.200025,0.00041096,120]
[407712666,1772698251200,-214.200025,0.00041096,120]
[407712667,1772698251209,-214.200025,0.00041096,120]
[407712668,1772698251218,-463.564965,0.00041096,120]
[407712669,1772698251228,-214.200025,0.00041096,120]
[407712670,1772698251237,-151.0,0.00041096,120]
[407712671,1772698251247,-151.0,0.00041096,120]
[407712672,1772698251256,-182.176333,0.00041096,120]
[407712673,1772698251266,-182.176333,0.00041096,120]
[407712674,1772698251275,-182.176333,0.00041096,120]
[407712675,1772698251288,-182.176333,0.00041096,120]
[407712676,1772698251297,-300.0,0.00041096,30]
[407712677,1772698251306,-300.0,0.00041096,30]
[407712678,1772698251316,-300.0,0.00041096,30]
[407712679,1772698251326,-300.0,0.00041096,30]
[407712680,1772698251335,-300.0,0.00041096,30]
[407712681,1772698251345,-1000.977778,0.00041096,120]
[407712682,1772698251355,-1000.977778,0.00041096,120]
[407712683,1772698251364,-1000.977778,0.00041096,120]
[407712684,1772698251374,-1000.977778,0.00041096,120]
[407712685,1772698251385,-1689.33,0.00041096,2]
[407712686,1772698251395,-446.98519161,0.000412,30]
[407712687,1772698251405,-1657.35,0.000412,120]
[407712688,1772698251414,-175.29342847,0.000412,10]
[407712689,1772698251423,-152.0,0.00041227,7]
[407712690,1772698251433,-795.46336,0.00041288,30]
[407712691,1772698251443,-1353.3,0.00041292,30]
[407712692,1772698251452,-236.11700467,0.000413,7]
[407712693,1772698251464,-216.60838437,0.00041468,120]
[407712694,1772698251474,-216.90002321,0.00041468,120]
[407712695,1772698251486,-795.46336,0.00041488,30]
[407712696,1772698251496,-562.885697,0.000415,47]
[407712697,1772698251507,-200.23570216,0.000415,2]
[407712698,1772698251517,-276.44125749,0.000415,120]
[407712699,1772698251528,-150.0,0.00041513,14]
[407712700,1772698251542,-298.0,0.00041513,14]
[407712701,1772698251552,-279.9073084,0.00041631,120]
[407712702,1772698251562,-1000.0,0.00041644,7]
[407712703,1772698251572,-250.0,0.00041644,10]
[407712704,1772698251583,-500.0,0.00041644,10]
[407712705,1772698251593,-1022.39725485,0.00041644,10]